bitfinex/quotes_BTCUSD_20250313
["timestamp","ask_amount","ask_price","bid_price","bid_amount"]
[1741870210698,0.255849,82883.0,82882.0,0.001]
[1741870211023,0.00372,82872.0,82871.0,0.0120663]
[1741870211444,0.00372,82872.0,82871.0,3e-07]
[1741870211854,0.00372,82872.0,82871.0,0.2413383]
[1741870212069,0.00372,82872.0,82871.0,0.2534043]
[1741870212470,0.00372,82872.0,82871.0,3e-07]
[1741870212674,0.00372,82872.0,82871.0,0.0120663]
[1741870213149,0.00372,82872.0,82871.0,0.0160663]
[1741870213775,0.00372,82872.0,82871.0,0.0120663]
[1741870213975,0.00372,82872.0,82871.0,0.0160663]
[1741870214413,0.00372,82872.0,82871.0,0.2453383]
[1741870214588,0.00372,82872.0,82871.0,0.2574043]
[1741870214794,0.00372,82872.0,82871.0,0.0040003]
[1741870214998,0.018266,82872.0,82871.0,0.0040003]
[1741870215247,0.15020847,82872.0,82871.0,0.0040003]
[1741870215458,0.45020847,82872.0,82871.0,3e-07]
[1741870215658,0.45000287,82872.0,82871.0,0.0050003]
[1741870216220,0.44900287,82872.0,82871.0,3e-07]
[1741870216422,0.44900287,82872.0,82871.0,0.0030003]
[1741870216644,0.46354372,82872.0,82871.0,0.0030003]
[1741870216840,0.46354372,82872.0,82848.0,0.0001694]
[1741870216841,0.553473,82849.0,82848.0,0.0001694]
[1741870217058,0.67565399,82849.0,82848.0,0.0001694]
[1741870217812,0.81689484,82849.0,82848.0,4e-07]
[1741870218605,0.83580885,82849.0,82848.0,4e-07]
[1741870218830,0.256004,82832.0,82831.0,1e-06]
[1741870219012,0.55601,82830.0,82829.0,9.1e-07]
[1741870219188,0.69025184,82830.0,82829.0,9.1e-07]
[1741870219595,0.69025184,82830.0,82829.0,0.07000091]
[1741870219792,0.69025184,82830.0,82829.0,9.1e-07]
[1741870220165,0.87773191,82830.0,82829.0,9.1e-07]
[1741870220769,0.87773191,82830.0,82829.0,0.00100091]
[1741870221406,0.87773191,82830.0,82829.0,0.001]
[1741870221946,0.556078,82808.0,82807.0,0.0124175]
[1741870222158,1.44217899,82808.0,82807.0,0.0124175]
[1741870222761,1.45671984,82808.0,82807.0,0.0124175]
[1741870222972,1.44217899,82808.0,82807.0,0.0124175]
[1741870223594,1.44317899,82808.0,82807.0,0.0124175]
[1741870224259,1.44317899,82808.0,82799.0,0.0001696]
[1741870224260,0.314557,82800.0,82799.0,7e-07]
[1741870224462,0.32909785,82798.0,82797.0,7e-07]
[1741870224665,0.44879884,82798.0,82797.0,7e-07]
[1741870225115,0.61883884,82798.0,82797.0,7e-07]
[1741870225254,0.73387412,82798.0,82797.0,7e-07]
[1741870225801,0.61883884,82798.0,82797.0,7e-07]
[1741870226002,0.45070464,82798.0,82797.0,7e-07]
[1741870226212,0.44110764,82798.0,82797.0,7e-07]
[1741870226359,0.02140665,82798.0,82797.0,7e-07]
[1741870226768,0.02540665,82798.0,82797.0,7e-07]
[1741870226964,0.02540665,82798.0,82793.0,0.012078]
[1741870227193,0.02540665,82798.0,82797.0,0.012077]
[1741870228001,0.00248,82796.0,82795.0,0.0001694]
[1741870228207,0.13546359,82796.0,82795.0,0.0001694]
[1741870228815,0.13546359,82796.0,82795.0,0.0122474]
[1741870228816,0.11970099,82796.0,82795.0,0.0122474]
[1741870229017,0.01992665,82798.0,82795.0,0.0122474]
[1741870229018,0.02240665,82798.0,82797.0,0.012077]
[1741870229231,0.01992665,82798.0,82797.0,0.012077]
[1741870229423,0.001,82798.0,82797.0,0.012077]
[1741870229734,0.00248,82809.0,82805.0,0.012076]
[1741870229932,0.00248,82809.0,82808.0,0.253598]
[1741870230562,0.01892087,82814.0,82813.0,0.012075]
[1741870230769,0.01892087,82814.0,82813.0,0.253582]
[1741870230990,0.02140087,82814.0,82813.0,0.253582]
[1741870231537,0.01892087,82814.0,82813.0,0.253582]
[1741870231742,0.02140087,82814.0,82813.0,0.253582]
[1741870231945,0.00248,82811.0,82810.0,0.241516]
[1741870232355,0.01892087,82814.0,82813.0,0.253582]
[1741870232556,0.00248,82834.0,82827.0,0.25354]
[1741870232686,0.00248,82834.0,82833.0,0.253521]
[1741870232890,0.00248,82834.0,82825.0,0.24147]
[1741870232891,0.31207,82849.0,82843.0,0.012071]
[1741870233091,0.00248,82844.0,82840.0,0.012071]
[1741870233292,0.00259897,82848.0,82847.0,0.01207]
[1741870233496,0.00248,82848.0,82842.0,0.253494]
[1741870233809,0.00248,82847.0,82846.0,0.253479]
[1741870234987,0.00648,82849.0,82848.0,0.253475]
[1741870235333,0.00248,82856.0,82848.0,0.01207]
[1741870235545,0.00248,82856.0,82855.0,0.253454]
[1741870235748,0.01891063,82858.0,82857.0,0.253447]
[1741870236366,0.00248,82864.0,82863.0,0.25343]
[1741870236652,0.00248,82864.0,82861.0,0.241365]
[1741870236942,0.00248,82864.0,82863.0,0.012068]
[1741870237085,0.00248,82864.0,82862.0,0.253432]
[1741870237283,0.00248,82865.0,82864.0,0.253425]
[1741870237506,0.00248,82865.0,82862.0,0.253432]
[1741870237708,0.00248,82864.0,82862.0,0.241364]
[1741870237925,0.00248,82864.0,82861.0,0.012068]
[1741870238132,0.00248,82864.0,82862.0,0.241364]
[1741870238338,0.00248,82864.0,82863.0,0.012068]
[1741870238546,0.01890844,82867.0,82866.0,0.012067]
[1741870239126,0.004059,82872.0,82871.0,0.253404]
[1741870239967,0.004059,82872.0,82870.0,0.253408]
[1741870240201,0.00248,82864.0,82859.0,0.16988]
[1741870240401,0.00248,82864.0,82861.0,0.241366]
[1741870240679,0.00248,82864.0,82859.0,0.16988]
[1741870240833,0.014547,82864.0,82859.0,0.16988]
[1741870241038,0.01207,82847.0,82842.0,0.16988]
[1741870241267,0.012071,82837.0,82836.0,0.16988]
[1741870241594,0.00248,82829.0,82828.0,0.16988]
[1741870241930,0.00248,82820.0,82811.0,0.012075]
[1741870242133,0.00248,82820.0,82816.0,0.253572]
[1741870242333,0.00248,82820.0,82819.0,0.012074]
[1741870243213,0.00248,82823.0,82822.0,0.241481]
[1741870243449,0.00248,82818.0,82817.0,0.012074]
[1741870243654,0.012073,82824.0,82810.0,0.253589]
[1741870243655,0.00248,82815.0,82810.0,0.253589]
[1741870243856,0.00248,82811.0,82810.0,0.253589]
[1741870245320,0.00248,82824.0,82821.0,0.012074]
[1741870245529,0.00248,82826.0,82825.0,0.012073]
[1741870245983,0.02139636,82826.0,82821.0,0.012074]
[1741870246190,0.02139636,82826.0,82822.0,0.241481]
[1741870246367,0.02139636,82826.0,82822.0,0.253555]
[1741870247026,0.02139636,82826.0,82825.0,0.003]
[1741870247830,0.27493936,82826.0,82825.0,0.003]
[1741870248037,0.02139636,82826.0,82825.0,0.003]
[1741870248191,0.03346936,82826.0,82825.0,0.003]
[1741870248400,0.03346936,82826.0,82821.0,0.012074]
[1741870248401,0.00248,82822.0,82821.0,0.012074]
[1741870248626,0.00248,82822.0,82819.0,0.241487]
[1741870248830,0.00248,82814.0,82812.0,0.241508]
[1741870249070,0.00248,82814.0,82813.0,0.012075]
[1741870249687,0.00248,82810.0,82806.0,0.241525]
[1741870249894,0.00248,82810.0,82809.0,0.012075]
[1741870250104,0.01891774,82817.0,82813.0,0.241507]
[1741870250355,0.01891774,82817.0,82816.0,0.012074]
[1741870250930,0.00248,82820.0,82819.0,0.253564]
[1741870251691,0.0189173,82828.0,82825.0,0.012073]
[1741870251894,0.00248,82827.0,82826.0,1.753543]
[1741870252500,0.00248,82827.0,82826.0,0.253543]
[1741870253121,0.0189173,82828.0,82827.0,0.012073]
[1741870253715,0.00248,82839.0,82838.0,0.253506]
[1741870253913,0.01891493,82838.0,82836.0,0.25351]
[1741870254142,0.00248,82833.0,82832.0,0.012072]
[1741870254386,0.00248,82830.0,82829.0,0.012073]
[1741870254630,0.00248,82827.0,82826.0,0.002]
[1741870254825,0.00248,82827.0,82825.0,0.253543]
[1741870255036,0.00248,82827.0,82826.0,0.012073]
[1741870255165,0.00248,82827.0,82826.0,0.015073]
[1741870255851,0.00248,82827.0,82826.0,0.012073]
[1741870256511,0.00248,82826.0,82825.0,0.003]
[1741870256726,0.00248,82818.0,82815.0,0.012075]
[1741870256933,0.00248,82816.0,82815.0,0.253574]
[1741870257850,0.00248,82814.0,82810.0,0.241514]
[1741870258091,0.00248,82814.0,82812.0,0.253583]
[1741870258327,0.00248,82814.0,82813.0,0.012075]
[1741870259455,0.00248,82826.0,82825.0,0.012073]
[1741870262482,0.00248,82826.0,82825.0,0.003]
[1741870262716,0.00248,82826.0,82825.0,0.015073]
[1741870263447,0.36365099,82826.0,82825.0,0.003]
[1741870263692,0.13425399,82826.0,82825.0,0.003]
[1741870263931,0.00248,82826.0,82825.0,0.003]
[1741870264416,0.014553,82826.0,82825.0,0.003]
[1741870264614,0.0028192,82826.0,82825.0,0.003]
[1741870265109,0.2563632,82826.0,82820.0,0.25356]
[1741870265361,0.00248,82814.0,82812.0,0.241508]
[1741870265604,0.00248,82814.0,82813.0,0.012075]
[1741870265894,0.0003392,82826.0,82825.0,0.012073]
[1741870266145,0.0028192,82826.0,82825.0,0.256545]
[1741870266839,0.00248,82822.0,82821.0,0.253558]
[1741870267772,0.0028192,82826.0,82825.0,0.012073]
[1741870268045,0.0028192,82826.0,82825.0,0.253545]
[1741870268521,0.0003392,82826.0,82825.0,0.253545]
[1741870268709,2e-07,82826.0,82825.0,0.37624599]
[1741870269231,2e-07,82826.0,82825.0,0.45274599]
[1741870269467,2e-07,82826.0,82825.0,0.48603399]
[1741870269731,0.00248,82869.0,82868.0,0.012067]
[1741870269966,0.7666,82877.0,82871.0,0.253404]
[1741870270186,0.006539,82872.0,82871.0,0.253404]
[1741870270441,0.006539,82872.0,82869.0,0.241344]
[1741870270690,0.00248,82866.0,82858.0,0.241375]
[1741870270946,0.00248,82860.0,82857.0,0.012068]
[1741870271183,0.00248,82860.0,82858.0,0.012068]
[1741870271423,0.00248,82860.0,82851.0,0.241394]
[1741870271661,0.012069,82854.0,82844.0,0.01207]
[1741870271893,0.00248,82847.0,82840.0,0.241429]
[1741870272156,0.00248,82842.0,82838.0,0.16956]
[1741870272379,0.00248,82842.0,82840.0,0.012071]
[1741870272626,0.00248,82843.0,82842.0,0.241422]
[1741870272879,0.00248,82843.0,82837.0,0.012071]
[1741870272880,0.00248,82838.0,82831.0,0.253527]
[1741870273153,0.00248,82831.0,82830.0,0.16952]
[1741870273390,0.00248,82822.0,82818.0,0.012074]
[1741870273616,0.00248,82822.0,82821.0,0.012074]
[1741870275996,0.00248,82822.0,82818.0,0.253564]
[1741870276264,0.00248,82822.0,82819.0,0.253562]
[1741870276499,0.00248,82822.0,82821.0,0.005]
[1741870277174,0.00248,82822.0,82819.0,0.012074]
[1741870277572,0.00248,82822.0,82820.0,0.241486]
[1741870277983,0.01891522,82827.0,82823.0,0.012073]
[1741870278209,0.01891522,82827.0,82826.0,0.012073]
[1741870278828,0.00248,82824.0,82819.0,0.253563]
[1741870279043,0.00248,82822.0,82817.0,0.16948]
[1741870279257,0.00248,82822.0,82817.0,0.410975]
[1741870279478,0.243967,82821.0,82817.0,0.16948]
[1741870279887,0.00248,82818.0,82817.0,0.16948]
[1741870280103,0.00248,82818.0,82807.0,0.241523]
[1741870280308,0.014555,82809.0,82802.0,0.16944]
[1741870280514,0.00248,82809.0,82802.0,0.423056]
[1741870280730,0.00248,82809.0,82806.0,0.082076]
[1741870280932,0.00248,82809.0,82806.0,0.323602]
[1741870281151,0.00248,82809.0,82806.0,0.07]
[1741870281535,0.00248,82809.0,82806.0,0.082076]
[1741870281938,0.00248,82809.0,82808.0,0.012076]
[1741870282703,0.00248,82809.0,82808.0,0.082076]
[1741870282909,0.241487,82821.0,82808.0,0.082076]
[1741870282910,0.00248,82832.0,82827.0,0.012073]
[1741870283120,0.00248,82831.0,82827.0,0.012073]
[1741870283563,0.0028192,82828.0,82827.0,1.5]
[1741870283768,0.0028192,82828.0,82820.0,0.410925]
[1741870283974,0.0028192,82828.0,82822.0,0.012074]
[1741870284335,0.00248,82824.0,82823.0,0.012073]
[1741870284509,0.00248,82824.0,82822.0,0.012074]
[1741870284789,0.012077,82801.0,82793.0,0.241565]
[1741870284965,0.012076,82804.0,82795.0,0.0122474]
[1741870285186,0.012077,82799.0,82797.0,0.0701696]
[1741870285371,0.0157626,82798.0,82797.0,0.0701696]
[1741870285576,0.00248,82801.0,82800.0,0.012077]
[1741870285775,0.00248,82807.0,82806.0,0.241527]
[1741870285974,0.00248,82806.0,82805.0,0.012076]
[1741870286185,0.00248,82802.0,82801.0,0.253619]
[1741870286389,0.00248,82802.0,82799.0,0.012077]
[1741870286629,0.00248,82802.0,82799.0,0.253623]
[1741870286796,0.00248,82802.0,82801.0,0.012077]
[1741870286978,0.00248,82822.0,82818.0,0.012074]
[1741870287177,0.00248,82820.0,82819.0,0.253562]
[1741870287379,0.0028192,82828.0,82827.0,0.012073]
[1741870287586,0.0028192,82828.0,82827.0,0.25354]
[1741870287850,0.00039754,82828.0,82827.0,0.25354]
[1741870288053,0.01931316,82828.0,82827.0,0.25354]
[1741870288231,0.01925482,82828.0,82827.0,0.25354]
[1741870288998,0.01925482,82828.0,82826.0,0.25354]
[1741870289354,0.02173482,82828.0,82819.0,0.0001696]
[1741870289572,0.00248,82820.0,82819.0,0.0001696]
[1741870289976,0.00248,82820.0,82819.0,0.2537336]
[1741870290221,0.00252664,82820.0,82819.0,0.0001696]
[1741870290421,4.664e-05,82820.0,82819.0,0.0001696]
[1741870290620,0.00248,82822.0,82820.0,0.253561]
[1741870290928,0.00248,82822.0,82821.0,0.012074]
[1741870291192,0.00248,82822.0,82820.0,0.253561]
[1741870291602,0.00248,82820.0,82819.0,0.0122436]
[1741870291815,0.01925482,82828.0,82827.0,0.012073]
[1741870292079,0.02173482,82828.0,82827.0,0.012073]
[1741870292287,0.0003392,82828.0,82827.0,0.01328022]
[1741870292496,0.0003392,82828.0,82827.0,0.01328015]
[1741870292673,0.0003392,82828.0,82827.0,0.012073]
[1741870292972,0.0003392,82828.0,82825.0,0.012073]
[1741870293205,0.0003392,82828.0,82819.0,0.0122436]
[1741870293206,0.241485,82821.0,82819.0,0.0001696]
[1741870293398,0.243965,82821.0,82819.0,0.0001696]
[1741870293758,0.00248,82821.0,82820.0,0.012074]
[1741870294362,0.00248,82821.0,82819.0,0.0001696]
[1741870294521,0.00248,82821.0,82820.0,0.012074]
[1741870294737,0.00248,82821.0,82820.0,0.253561]
[1741870294952,0.00248,82821.0,82819.0,0.0001696]
[1741870295201,0.00248,82821.0,82819.0,0.2537336]
[1741870295424,0.012073,82827.0,82819.0,0.2537336]
[1741870295425,0.00248,82822.0,82821.0,0.012074]
[1741870295589,0.00248,82822.0,82821.0,0.253558]
[1741870295789,0.00248,82822.0,82819.0,0.0172436]
[1741870296000,0.253558,82821.0,82819.0,0.0051696]
[1741870296232,0.014554,82820.0,82819.0,0.0051696]
[1741870296500,0.0157596,82820.0,82819.0,0.0001696]
[1741870296669,0.13546059,82820.0,82819.0,0.0001696]
[1741870296846,0.43546059,82820.0,82819.0,0.0001696]
[1741870297053,0.43425499,82820.0,82819.0,0.0001696]
[1741870298092,0.314554,82820.0,82819.0,0.0001696]
[1741870298582,0.43425499,82820.0,82819.0,0.0001696]
[1741870298789,0.43425499,82820.0,82819.0,0.0051696]
[1741870299801,0.43425499,82820.0,82819.0,0.0001696]
[1741870300204,0.43425499,82820.0,82819.0,0.0011696]
[1741870300828,0.43425499,82820.0,82819.0,0.0001696]
[1741870301998,0.314554,82820.0,82819.0,0.0001696]
[1741870302202,0.00248,82822.0,82821.0,0.012074]
[1741870302408,0.00248,82822.0,82821.0,0.253558]
[1741870302723,0.0003392,82830.0,82827.0,0.25354]
[1741870302890,0.0003392,82830.0,82821.0,0.253558]
[1741870302891,0.243958,82824.0,82819.0,0.0132436]
[1741870303095,0.00248,82824.0,82820.0,1.5]
[1741870303304,0.00248,82821.0,82820.0,1.5]
[1741870303714,0.00248,82820.0,82819.0,0.0001696]
[1741870303915,0.00248,82820.0,82819.0,0.0122436]
[1741870304113,0.0003392,82828.0,82826.0,0.241469]
[1741870304322,0.0003392,82828.0,82827.0,0.012073]
[1741870304526,0.0028192,82828.0,82827.0,0.012073]
[1741870304730,0.0028192,82828.0,82826.0,0.253542]
[1741870305265,0.243958,82824.0,82819.0,0.0122436]
[1741870305478,0.00248,82824.0,82819.0,0.0001696]
[1741870305687,0.00248,82820.0,82819.0,0.0001696]
[1741870305883,0.2607208,82828.0,82822.0,0.253555]
[1741870306089,0.00248,82826.0,82823.0,0.012073]
[1741870306292,0.00248,82824.0,82823.0,0.012073]
[1741870306544,0.00248,82826.0,82825.0,0.253545]
[1741870306944,0.00248,82826.0,82825.0,0.012073]
[1741870307144,0.00248,82826.0,82824.0,0.253548]
[1741870307514,0.00248,82826.0,82825.0,0.012073]
[1741870308100,0.0003392,82828.0,82827.0,0.012073]
[1741870308300,0.0003392,82828.0,82827.0,0.01328027]
[1741870309155,0.0003392,82828.0,82827.0,0.012073]
[1741870309508,0.0028192,82828.0,82826.0,0.24147]
[1741870309708,0.0028192,82828.0,82826.0,0.253543]
[1741870309953,0.2442842,82828.0,82823.0,0.241476]
[1741870310167,0.00248,82820.0,82819.0,0.0001696]
[1741870310368,0.00248,82825.0,82823.0,0.241476]
[1741870310569,0.00248,82825.0,82822.0,0.241481]
[1741870310771,0.00248,82825.0,82823.0,0.253549]
[1741870310972,0.00248,82825.0,82823.0,0.012073]
[1741870311186,0.241483,82822.0,82819.0,0.0001696]
[1741870311395,0.00248,82825.0,82823.0,0.012073]
[1741870311619,0.00248,82825.0,82823.0,0.253549]
[1741870311822,0.00248,82825.0,82824.0,0.012073]
[1741870312491,0.0189156,82826.0,82825.0,0.253545]
[1741870312704,0.0003392,82828.0,82827.0,0.25354]
[1741870313531,0.0028192,82828.0,82827.0,0.25354]
[1741870313761,0.0028192,82828.0,82826.0,0.25354]
[1741870313898,0.0028192,82828.0,82820.0,0.25356]
[1741870314098,0.241478,82824.0,82819.0,0.1692896]
[1741870314302,0.0028192,82828.0,82821.0,0.253556]
[1741870314572,0.241483,82822.0,82819.0,0.0001696]
[1741870314756,0.241487,82821.0,82819.0,0.0001696]
[1741870315104,0.253561,82821.0,82819.0,0.0001696]
[1741870315330,0.014554,82820.0,82819.0,0.0001696]
[1741870315530,0.00248,82820.0,82819.0,0.0001696]
[1741870316132,0.02139679,82821.0,82819.0,0.0001696]
[1741870316662,0.02139679,82821.0,82819.0,0.0021696]
[1741870317059,0.01891679,82821.0,82819.0,0.2436566]
[1741870317359,0.01891679,82821.0,82820.0,0.012074]
[1741870317564,0.00248,82825.0,82824.0,0.012073]
[1741870318438,0.00248,82825.0,82824.0,0.253548]
[1741870318832,0.00248,82825.0,82822.0,0.24148]
[1741870319045,0.243955,82825.0,82820.0,0.253558]
[1741870319441,0.243955,82825.0,82819.0,0.0041696]
[1741870319648,0.256041,82820.0,82819.0,0.0001696]
[1741870320108,0.37574199,82820.0,82819.0,0.0001696]
[1741870320835,0.00248,82820.0,82819.0,0.0041696]
[1741870321069,0.00248,82821.0,82819.0,0.0041696]
[1741870321316,0.00248,82821.0,82819.0,0.2416566]
[1741870321534,0.00248,82825.0,82824.0,0.253546]
[1741870321747,0.0003392,82828.0,82827.0,0.241467]
[1741870321963,0.0003392,82828.0,82827.0,0.25354]
[1741870322178,0.0003392,82828.0,82825.0,0.253543]
[1741870322386,0.0003392,82828.0,82827.0,0.012073]
[1741870322594,0.243952,82826.0,82820.0,0.012074]
[1741870322798,0.241478,82823.0,82815.0,0.181115]
[1741870323002,0.241478,82823.0,82819.0,0.0021696]
[1741870323206,0.00248,82825.0,82820.0,0.012074]
[1741870323406,0.00248,82825.0,82823.0,0.241476]
[1741870323607,0.00248,82825.0,82823.0,0.253549]
[1741870324139,0.00248,82826.0,82824.0,0.012073]
[1741870324343,0.0003392,82828.0,82825.0,0.012073]
[1741870324552,0.0003392,82828.0,82825.0,0.253543]
[1741870324760,0.0003392,82828.0,82820.0,0.003]
[1741870324967,0.0003392,82828.0,82826.0,0.241468]
[1741870325169,0.0003392,82828.0,82827.0,0.012073]
[1741870325725,0.0003392,82828.0,82827.0,0.01328022]
[1741870326016,0.0003392,82828.0,82827.0,0.012073]
[1741870326262,0.0003392,82828.0,82823.0,0.012073]
[1741870326483,0.00248,82825.0,82821.0,0.241482]
[1741870326623,0.0003392,82828.0,82827.0,0.012073]
[1741870326851,0.0003392,82828.0,82824.0,0.0041693]
[1741870326852,0.014553,82825.0,82824.0,0.0041693]
[1741870327073,0.0157586,82825.0,82824.0,0.0041693]
[1741870327281,0.014553,82825.0,82824.0,0.0001693]
[1741870327490,0.0157586,82825.0,82824.0,0.0001693]
[1741870328271,0.014553,82825.0,82824.0,0.0001693]
[1741870328425,0.0157586,82825.0,82824.0,0.0011693]
[1741870329440,0.0003392,82828.0,82827.0,0.25354]
[1741870330322,0.0003392,82828.0,82825.0,0.241472]
[1741870330496,0.0003392,82828.0,82827.0,0.25354]
[1741870330697,0.0003392,82828.0,82826.0,0.25354]
[1741870330969,0.0003392,82828.0,82827.0,0.012073]
[1741870331174,0.0003392,82828.0,82827.0,0.01328024]
[1741870331984,0.0003392,82828.0,82827.0,1.516073]
[1741870332186,0.0003392,82828.0,82827.0,1.504]
[1741870332354,0.0003392,82828.0,82827.0,1.516073]
[1741870332925,0.0003392,82828.0,82827.0,1.52738869]
[1741870333148,0.0003392,82828.0,82827.0,0.01531569]
[1741870333353,0.0003392,82828.0,82827.0,0.02738869]
[1741870333555,0.0003392,82828.0,82827.0,1.52738869]
[1741870333803,0.0003392,82828.0,82827.0,0.02738869]
[1741870334034,0.0003392,82828.0,82827.0,0.01531569]
[1741870334468,0.13579879,82828.0,82827.0,0.01531569]
[1741870334688,0.13579879,82828.0,82827.0,0.004]
[1741870335127,0.012073,82825.0,82824.0,0.0001693]
[1741870335333,0.0132786,82825.0,82824.0,0.0001693]
[1741870335538,0.2547506,82825.0,82824.0,0.0001693]
[1741870335756,0.253545,82825.0,82824.0,0.0001693]
[1741870336348,0.241467,82827.0,82824.0,0.0001693]
[1741870336534,0.37358019,82828.0,82824.0,0.0122423]
[1741870336535,0.00248,82825.0,82824.0,0.0122423]
[1741870336826,0.0028192,82828.0,82826.0,0.012073]
[1741870337209,0.0028192,82828.0,82825.0,0.253545]
[1741870337413,0.0003392,82828.0,82827.0,0.012073]
[1741870337593,0.0003392,82828.0,82827.0,0.01328017]
[1741870337813,0.0003392,82828.0,82827.0,0.012073]
[1741870338660,0.0003392,82828.0,82826.0,0.42242]
[1741870338861,0.0003392,82828.0,82827.0,0.012073]
[1741870339935,0.0003392,82828.0,82827.0,0.0122423]
[1741870340347,0.0003392,82828.0,82827.0,0.0162423]
[1741870341341,0.0003392,82828.0,82827.0,0.01744948]
[1741870341564,0.0003392,82828.0,82827.0,0.0162423]
[1741870342091,0.0028192,82828.0,82827.0,0.0041693]
[1741870342314,0.0148922,82828.0,82827.0,0.0041693]
[1741870342436,0.0028192,82828.0,82827.0,0.0041693]
[1741870343085,0.2442832,82828.0,82827.0,0.0001693]
[1741870343289,0.0028192,82828.0,82827.0,0.0001693]
[1741870343486,0.0028192,82828.0,82827.0,0.0041693]
[1741870344242,0.0003392,82828.0,82827.0,0.0174496]
[1741870344445,0.0003392,82828.0,82827.0,0.30595041]
[1741870344648,0.0003392,82828.0,82827.0,0.30474329]
[1741870345375,0.0003392,82828.0,82827.0,0.1850423]
[1741870345789,0.0003392,82828.0,82827.0,0.18624946]
[1741870346141,0.0003392,82828.0,82827.0,0.1850423]
[1741870346347,0.2563562,82828.0,82827.0,0.0041693]
[1741870346960,0.2563562,82828.0,82827.0,0.0001693]
[1741870347315,0.0028192,82828.0,82827.0,0.0041693]
[1741870347520,0.0003392,82828.0,82827.0,0.0041693]
[1741870347747,0.0003392,82828.0,82827.0,0.01344958]
[1741870348360,0.0003392,82828.0,82827.0,0.01444958]
[1741870348827,0.0003392,82828.0,82827.0,0.13315057]
[1741870349059,0.0003392,82828.0,82827.0,0.30191057]
[1741870349254,0.0003392,82828.0,82827.0,0.30070329]
[1741870350263,0.0003392,82828.0,82827.0,0.30370329]
[1741870350994,0.0003392,82828.0,82827.0,0.30070329]
[1741870351403,0.0003392,82828.0,82827.0,0.30470329]
[1741870352026,0.0003392,82828.0,82827.0,1.80470329]
[1741870353029,0.0003392,82828.0,82827.0,1.81924414]
[1741870353242,4e-07,82830.0,82829.0,0.012073]
[1741870353469,4e-07,82830.0,82829.0,0.45004174]
[1741870353676,4e-07,82830.0,82829.0,0.61981725]
[1741870354053,4e-07,82830.0,82829.0,2.11981725]
[1741870355097,4e-07,82830.0,82829.0,2.12581725]
[1741870358611,4e-07,82830.0,82829.0,2.11981725]
[1741870359723,0.01890804,82871.0,82829.0,2.10774425]
[1741870359935,0.01890804,82871.0,82870.0,0.253408]
[1741870360139,0.00248,82891.0,82871.0,0.012066]
[1741870360278,0.01890526,82886.0,82871.0,0.13297339]
[1741870360524,0.01890526,82886.0,82871.0,0.14751424]
[1741870361128,1e-06,82872.0,82871.0,0.46151353]
[1741870361329,0.10642819,82904.0,82886.0,0.253359]
[1741870361538,0.10642819,82904.0,82886.0,0.55872084]
[1741870361742,0.01924038,82909.0,82886.0,0.55872084]
[1741870361946,0.26046838,82909.0,82886.0,2.05620084]
[1741870362311,0.00248,82902.0,82886.0,2.04165999]
[1741870362916,0.00248,82908.0,82886.0,2.04165999]
[1741870363701,0.00248,82908.0,82886.0,2.04765999]
[1741870363902,0.01924038,82909.0,82886.0,2.06220084]
[1741870364116,0.01924038,82909.0,82886.0,2.08648698]
[1741870364276,0.01924038,82909.0,82886.0,2.38900698]
[1741870364481,1e-06,82887.0,82886.0,2.52180698]
[1741870365099,2e-07,82913.0,82912.0,0.01206]
[1741870365458,2e-07,82913.0,82912.0,0.85976668]
[1741870365762,2e-07,82913.0,82912.0,0.85856084]
[1741870365967,2e-07,82913.0,82912.0,0.95496084]
[1741870366125,2e-07,82913.0,82912.0,0.95244084]
[1741870366323,2e-07,82913.0,82912.0,0.67297999]
[1741870366501,2e-07,82913.0,82912.0,0.84145999]
[1741870367320,2e-07,82913.0,82912.0,0.37297999]
[1741870367537,2e-07,82913.0,82912.0,0.16848]
[1741870367731,2e-07,82913.0,82912.0,0.17448]
[1741870368328,0.2412162,82913.0,82912.0,0.17448]
[1741870368541,0.2412162,82913.0,82904.0,0.241242]
[1741870368542,0.012062,82904.0,82899.0,0.16844]
[1741870368746,0.241231,82908.0,82900.0,0.012062]
[1741870368958,0.241246,82903.0,82899.0,0.16844]
[1741870369166,0.241254,82901.0,82899.0,0.16844]
[1741870369799,0.241254,82901.0,82889.0,0.16844]
[1741870369800,0.012063,82897.0,82889.0,0.16844]
[1741870370021,0.012063,82893.0,82889.0,0.16844]
[1741870370228,0.014543,82897.0,82889.0,0.16844]
[1741870370229,0.00248,82895.0,82889.0,0.16844]
[1741870370451,0.00248,82895.0,82889.0,0.421787]
[1741870370870,0.00248,82895.0,82892.0,0.012063]
[1741870371403,0.00248,82896.0,82892.0,0.253338]
[1741870371583,0.01889978,82897.0,82895.0,0.012063]
[1741870371821,0.01889978,82897.0,82896.0,0.241266]
[1741870372035,0.01889978,82897.0,82896.0,0.253329]
[1741870372248,0.00248,82912.0,82909.0,0.253287]
[1741870372451,0.289808,82916.0,82912.0,0.01206]
[1741870372452,0.0486,82916.0,82912.0,0.01206]
[1741870372656,0.0486,82916.0,82910.0,0.241225]
[1741870372657,0.00248,82914.0,82910.0,0.241225]
[1741870372863,0.01454,82914.0,82906.0,0.253297]
[1741870373062,0.00248,82914.0,82911.0,0.241222]
[1741870373492,0.243693,82914.0,82907.0,0.012061]
[1741870373698,0.253298,82907.0,82898.0,0.012063]
[1741870373926,0.241245,82903.0,82897.0,0.012063]
[1741870374139,0.24127,82895.0,82892.0,0.005]
[1741870374597,0.00248,82896.0,82892.0,0.012063]
[1741870374829,0.00248,82896.0,82892.0,0.253339]
[1741870375041,0.00248,82896.0,82889.0,0.180424]
[1741870375042,0.00248,82896.0,82889.0,0.16836]
[1741870375244,0.24125,82902.0,82896.0,0.012063]
[1741870375479,0.00248,82906.0,82904.0,0.253302]
[1741870375705,0.01889838,82903.0,82901.0,0.25331]
[1741870375911,0.01889838,82903.0,82895.0,0.012063]
[1741870376082,0.241254,82901.0,82894.0,0.11970099]
[1741870376527,0.241254,82901.0,82895.0,0.00120618]
[1741870376734,0.241257,82899.0,82894.0,0.13176399]
[1741870376905,0.00248,82897.0,82893.0,1.504]